bitfinex/quotes_SOLUSD_20250108
["timestamp","ask_amount","ask_price","bid_price","bid_amount"]
[1736355869071,20.0,194.87,194.73,5.0]
[1736355869266,1.09937301,194.8,194.71,9.97475209]
[1736355869468,0.96275029,194.79,194.69,5.0]
[1736355869661,0.96275029,194.79,194.68,9.97475209]
[1736355869880,0.96275029,194.79,194.7,9.97475209]
[1736355870086,1.09937301,194.8,194.71,4.97475209]
[1736355870268,1.09937301,194.8,194.72,4.97475209]
[1736355870465,1.09937301,194.8,194.72,9.97475209]
[1736355870692,23.776884,194.79,194.71,9.97475209]
[1736355870893,0.96278067,194.78,194.72,5.0]
[1736355871365,20.0,194.76,194.71,5.0]
[1736355871563,20.0,194.76,194.7,9.97475209]
[1736355871868,0.96283747,194.75,194.69,9.97475209]
[1736355872071,23.776884,194.74,194.63,9.97475209]
[1736355872296,1.09937301,194.8,194.62,8.9679]
[1736355872297,20.0,194.69,194.62,8.9679]
[1736355872491,20.0,194.69,194.65,5.0]
[1736355872679,20.0,194.69,194.65,9.97475209]
[1736355872999,0.96311657,194.79,194.66,4.97475209]
[1736355873172,20.0,194.75,194.66,4.97475209]
[1736355873489,0.96303921,194.74,194.67,9.97475209]
[1736355873691,1.09937301,194.8,194.71,5.0]
[1736355873877,1.09937301,194.8,194.71,9.97475209]
[1736355874077,1.09937301,194.8,194.73,4.97475209]
[1736355874279,1.09937301,194.8,194.75,4.97475209]
[1736355874480,1.09937301,194.8,194.74,9.97475209]
[1736355874678,20.0,194.76,194.69,5.0]
[1736355874997,0.9629358,194.75,194.71,4.97475209]
[1736355875174,23.776884,194.74,194.69,5.0]
[1736355875494,0.9630458,194.73,194.68,5.0]
[1736355875793,20.0,194.71,194.66,5.0]
[1736355875974,20.0,194.71,194.65,9.97475209]
[1736355876378,0.96309636,194.7,194.64,5.0]
[1736355876578,0.96328168,194.73,194.65,4.97475209]
[1736355876782,0.96310258,194.79,194.65,4.97475209]
[1736355877085,20.0,194.71,194.65,4.97475209]
[1736355877471,20.0,194.71,194.65,9.97475209]
[1736355877880,0.96310314,194.7,194.65,9.97475209]
[1736355878480,20.0,194.71,194.66,9.97475209]
[1736355878803,20.0,194.79,194.68,9.97475209]
[1736355878985,23.776884,194.77,194.69,4.97475209]
[1736355879187,0.96297548,194.76,194.69,4.97475209]
[1736355879770,1.09937301,194.8,194.74,9.97475209]
[1736355879999,0.96269089,194.79,194.71,5.0]
[1736355880193,0.96269089,194.79,194.71,9.97475209]
[1736355880498,0.96269089,194.79,194.74,5.0]
[1736355880684,20.96269089,194.79,194.74,5.0]
[1736355880884,20.96269089,194.79,194.74,9.97475209]
[1736355881199,20.0,194.79,194.74,5.0]
[1736355881377,20.96272617,194.79,194.74,4.97475209]
[1736355881777,20.96272617,194.79,194.74,9.97475209]
[1736355882006,20.0,194.79,194.74,9.97475209]
[1736355882597,20.0,194.79,194.74,4.97475209]
[1736355882970,2.06204965,194.8,194.74,4.97475209]
[1736355883695,20.0,194.76,194.67,4.97475209]
[1736355884016,20.0,194.72,194.67,4.97475209]
[1736355884180,20.0,194.72,194.67,9.97475209]
[1736355884578,20.0,194.74,194.67,4.97475209]
[1736355884818,0.96304972,194.73,194.67,9.97475209]
[1736355885108,20.0,194.74,194.68,4.97475209]
[1736355885313,0.96298297,194.73,194.68,4.97475209]
[1736355885491,0.0252479,194.71,194.68,4.97475209]
[1736355886298,0.0252479,194.71,194.66,5.0]
[1736355886501,20.0,194.68,194.62,8.9679]
[1736355886712,0.96335778,194.67,194.62,8.9679]
[1736355887025,0.96335778,194.67,194.62,13.94265209]
[1736355887319,0.96335778,194.67,194.62,8.9679]
[1736355887496,23.776884,194.66,194.6,2.237]
[1736355887697,20.0,194.63,194.57,9.2539]
[1736355887908,0.96358819,194.62,194.57,9.2539]
[1736355888106,0.96358819,194.62,194.57,14.22865209]
[1736355888309,0.0252479,194.71,194.57,9.2539]
[1736355888520,20.0,194.67,194.57,9.2539]
[1736355888723,20.0,194.59,194.56,94.01149405]
[1736355888889,0.96370675,194.58,194.56,94.01149405]
[1736355889091,23.776884,194.57,194.56,94.01149405]
[1736355889483,0.694,194.68,194.5,77.37183591]
[1736355889709,0.694,194.68,194.5,41.64765037]
[1736355889710,25.68897555,194.66,194.5,41.64765037]
[1736355889932,25.22980747,194.64,194.5,41.64765037]
[1736355890231,25.84454559,194.59,194.51,23.776884]
[1736355890724,25.84454559,194.59,194.49,138.5]
[1736355890929,33.65461575,194.59,194.49,138.5]
[1736355891096,7.81007016,194.59,194.49,138.5]
[1736355891683,0.96369279,194.58,194.47,11.7716]
[1736355892283,7.81007016,194.57,194.47,11.7716]
[1736355893198,0.96370689,194.56,194.47,11.7716]
[1736355893402,0.96382342,194.57,194.47,11.7716]
[1736355893601,7.81007016,194.58,194.47,11.7716]
[1736355894193,0.96373765,194.57,194.47,11.7716]
[1736355894414,20.0,194.57,194.47,11.7716]
[1736355894604,0.96385174,194.56,194.47,11.7716]
[1736355894916,20.96385174,194.56,194.47,11.7716]
[1736355895309,20.0,194.55,194.47,11.7716]
[1736355896133,7.81007016,194.58,194.47,11.7716]
[1736355896413,20.0,194.56,194.47,11.7716]
[1736355896635,0.96303399,194.55,194.47,11.7716]
[1736355897502,20.0,194.54,194.39,12.1841]
[1736355897814,0.96399137,194.53,194.4,23.776884]
[1736355898596,20.0,194.55,194.4,144.39417577]
[1736355898818,0.96395774,194.54,194.4,144.39417577]
[1736355899026,20.0,194.54,194.4,120.61729177]
[1736355899197,0.96405924,194.53,194.39,12.1841]
[1736355899729,20.0,194.54,194.39,12.1841]
[1736355899903,0.96408171,194.53,194.39,37.61712757]
[1736355900102,20.0,194.54,194.41,25.43302757]
[1736355900310,0.96395666,194.53,194.4,49.20991157]
[1736355900508,1.09937301,194.52,194.4,23.776884]
[1736355900824,0.96401648,194.51,194.39,12.1841]
[1736355901599,1.09937301,194.52,194.43,23.776884]
[1736355901798,1.09937301,194.52,194.41,25.43302757]
[1736355901998,1.09937301,194.52,194.4,25.43302757]
[1736355902210,1.09937301,194.52,194.39,12.1841]
[1736355902610,20.0,194.48,194.39,12.1841]
[1736355902920,0.96435548,194.47,194.34,7.9006]
[1736355904296,20.0,194.43,194.33,2.3205]
[1736355904502,0.96465539,194.42,194.33,2.3205]
[1736355905205,0.96465539,194.42,194.27,2.4493]
[1736355905402,20.0,194.39,194.27,2.4493]
[1736355905603,20.9648567,194.38,194.21,27.69642757]
[1736355905936,20.9648567,194.38,194.21,2.2634]
[1736355906221,5.0,194.34,194.19,0.94164036]
[1736355906424,4.1649,194.41,194.14,2.3297]
[1736355906425,5.96522019,194.33,194.14,2.3297]
[1736355906604,5.96522019,194.33,194.05,11.4078721]
[1736355906605,5.0,194.28,194.05,11.4078721]
[1736355906804,0.6915,194.37,193.99,138.5]
[1736355906805,5.0,194.22,193.99,138.5]
[1736355907040,0.96586834,194.21,194.05,25.43302757]
[1736355907243,0.96589312,194.23,194.04,5.0]
[1736355907527,2.04403653,194.27,194.02,41.48816379]
[1736355907827,5.0,194.2,193.95,138.5]
[1736355908008,20.0,194.17,194.01,41.48816379]
[1736355908193,20.0,194.17,194.0,20.0]
[1736355908398,20.0,194.17,194.06,41.48816379]
[1736355908608,0.96578778,194.16,193.94,158.5]
[1736355908819,0.96578778,194.16,194.08,53.44176379]
[1736355909021,0.96578778,194.16,194.08,11.9536]
[1736355909226,0.9659361,194.19,194.08,11.9536]
[1736355909432,0.96583424,194.3,194.1,41.48816379]
[1736355909629,0.96583424,194.3,194.08,11.9536]
[1736355909630,20.0,194.28,194.08,11.9536]
[1736355909808,0.96561869,194.27,194.09,41.48816379]
[1736355910006,20.96561869,194.27,194.11,41.48816379]
[1736355910202,20.96561869,194.27,194.12,41.48816379]
[1736355910541,20.96561869,194.27,194.11,41.48816379]
[1736355910707,20.96561869,194.27,194.13,41.48816379]
[1736355910908,20.96561869,194.27,194.14,23.776884]
[1736355911117,0.96561869,194.27,194.17,41.48816379]
[1736355911308,0.96528739,194.29,194.17,41.48816379]
[1736355911501,7.810071,194.31,194.18,41.48816379]
[1736355911705,0.96516239,194.3,194.15,23.776884]
[1736355911917,0.96516624,194.35,194.21,23.776884]
[1736355912117,0.96516624,194.35,194.24,41.48816379]
[1736355912318,7.810071,194.36,194.27,41.48816379]
[1736355912515,0.6915,194.45,194.23,7.4355]
[1736355912516,0.9648584,194.45,194.29,23.776884]
[1736355912717,7.810071,194.41,194.3,41.48816379]
[1736355912929,0.96461406,194.43,194.33,41.48816379]
[1736355913233,7.810071,194.46,194.34,41.48816379]
[1736355913447,7.810071,194.46,194.36,41.48816379]
[1736355913647,5.36702469,194.5,194.38,41.48816379]
[1736355913947,8.90944401,194.52,194.41,41.48816379]
[1736355914116,8.90944401,194.52,194.45,23.776884]
[1736355914423,8.90944401,194.52,194.46,23.776884]
[1736355914638,8.90944401,194.52,194.41,41.48816379]
[1736355914847,1.09937301,194.52,194.38,2.3218]
[1736355915003,1.09937301,194.52,194.39,20.0]
[1736355915206,0.96425358,194.51,194.4,41.48816379]
[1736355915409,0.96425358,194.51,194.43,65.26504779]
[1736355915731,8.909444,194.59,194.46,41.48816379]
[1736355915937,0.96380357,194.58,194.47,23.776884]
[1736355916149,0.9637723,194.61,194.49,41.48816379]
[1736355916459,0.9637723,194.61,194.45,41.48816379]
[1736355916755,0.9637723,194.61,194.42,41.48816379]
[1736355916756,0.98902021,194.61,194.42,41.48816379]
[1736355917058,0.98902021,194.61,194.47,41.48816379]
[1736355917255,0.98902021,194.61,194.47,23.776884]
[1736355917560,20.0,194.55,194.38,43.80996379]
[1736355917730,0.96419283,194.54,194.38,43.80996379]
[1736355917926,0.96419283,194.54,194.41,65.26504779]
[1736355918238,0.96419283,194.54,194.39,61.48816379]
[1736355918421,20.0,194.51,194.32,41.48816379]
[1736355918626,0.96443934,194.5,194.32,41.48816379]
[1736355919046,0.96443934,194.5,194.36,41.48816379]
[1736355919236,0.96443934,194.5,194.39,65.26504779]
[1736355919545,0.96434405,194.53,194.42,65.26504779]
[1736355919748,0.96393464,194.6,194.44,41.48816379]
[1736355919944,0.96393464,194.6,194.45,41.48816379]
[1736355920321,0.96393464,194.6,194.42,41.48816379]
[1736355920526,0.96393464,194.6,194.47,41.48816379]
[1736355920724,0.96393464,194.6,194.49,41.48816379]
[1736355920930,20.96393464,194.6,194.48,23.776884]
[1736355921137,20.96393464,194.6,194.45,41.48816379]
[1736355921352,20.96393464,194.6,194.48,41.48816379]
[1736355922227,20.96393464,194.6,194.47,23.776884]
[1736355922649,20.96393464,194.6,194.48,23.776884]
[1736355922829,20.96393464,194.6,194.44,41.48816379]
[1736355923033,20.96393464,194.6,194.46,41.48816379]
[1736355923230,20.96393464,194.6,194.45,41.48816379]
[1736355923454,25.36637143,194.6,194.42,41.48816379]
[1736355923640,25.36637143,194.6,194.43,41.48816379]
[1736355923839,25.36637143,194.6,194.44,41.48816379]
[1736355924030,25.36637143,194.6,194.44,23.776884]
[1736355924433,25.36637143,194.6,194.44,41.48816379]
[1736355924628,25.36637143,194.6,194.47,23.776884]
[1736355924852,0.02524791,194.61,194.51,65.26504779]
[1736355925153,20.0,194.6,194.5,41.48816379]
[1736355925665,20.0,194.6,194.51,41.48816379]
[1736355925832,20.0,194.6,194.49,41.48816379]
[1736355926030,0.96361899,194.59,194.45,2.2436]
[1736355926242,0.96361899,194.59,194.45,43.73176379]
[1736355926545,0.96361899,194.59,194.45,2.2436]
[1736355926931,0.96361899,194.59,194.45,43.73176379]
[1736355927356,0.96361899,194.59,194.42,41.48816379]
[1736355927650,20.0,194.56,194.45,41.48816379]
[1736355927852,0.02524791,194.61,194.49,41.48816379]
[1736355928057,0.02524791,194.61,194.47,41.48816379]
[1736355928225,20.0,194.6,194.44,41.48816379]
[1736355928424,0.96390809,194.59,194.43,41.48816379]
[1736355928643,0.96390809,194.59,194.42,41.48816379]
[1736355928839,0.96390809,194.59,194.47,41.48816379]
[1736355929161,0.96390809,194.59,194.45,41.48816379]
[1736355929366,0.96390809,194.59,194.46,41.48816379]
[1736355929542,0.96390809,194.59,194.44,41.48816379]
[1736355929853,0.96390809,194.59,194.45,41.48816379]
[1736355930041,0.96390809,194.59,194.42,41.48816379]
[1736355930441,0.96390809,194.59,194.39,23.776884]
[1736355930636,20.02524791,194.61,194.38,43.86356379]
[1736355930637,20.0,194.54,194.38,43.86356379]
[1736355930837,0.96425844,194.53,194.37,51.28626379]
[1736355931135,0.96425844,194.53,194.41,41.48816379]
[1736355931333,1.09937301,194.52,194.46,41.48816379]
[1736355931862,1.09937301,194.52,194.47,41.48816379]
[1736355932232,1.09937301,194.52,194.46,41.48816379]
[1736355932539,1.09937301,194.52,194.45,41.48816379]
[1736355933164,1.09937301,194.52,194.42,41.48816379]
[1736355933672,1.09937301,194.52,194.45,41.48816379]
[1736355934252,1.09937301,194.52,194.44,41.48816379]
[1736355934843,1.09937301,194.52,194.42,41.48816379]
[1736355935058,1.09937301,194.52,194.38,23.776884]
[1736355935059,1.09937301,194.52,194.38,41.48816379]
[1736355935259,1.09937301,194.52,194.29,56.34]
[1736355935260,20.0,194.5,194.33,41.48816379]
[1736355935473,23.776884,194.48,194.31,54.31436379]
[1736355935635,0.96456768,194.47,194.31,12.8262]
[1736355935834,0.96456768,194.47,194.32,41.48816379]
[1736355936260,0.96456768,194.47,194.36,41.48816379]
[1736355936560,0.96456768,194.47,194.35,41.48816379]
[1736355936768,0.96435527,194.46,194.35,41.48816379]
[1736355937059,0.96437417,194.48,194.34,41.48816379]
[1736355937265,0.96437417,194.48,194.33,41.48816379]
[1736355937466,0.96437417,194.48,194.34,41.48816379]
[1736355937649,0.96437417,194.48,194.33,41.48816379]
[1736355937844,0.96437417,194.48,194.34,41.48816379]
[1736355938163,20.0,194.44,194.31,41.48816379]
[1736355938363,0.9646921,194.43,194.26,41.48816379]
[1736355938564,20.0,194.38,194.19,58.8199]
[1736355938764,20.0,194.33,194.16,41.48816379]
[1736355938950,0.96521673,194.32,194.15,41.48816379]
[1736355939263,0.96532989,194.35,194.18,41.48816379]
[1736355939462,0.96532989,194.35,194.22,41.48816379]
[1736355939649,0.96513429,194.4,194.25,41.48816379]
[1736355940042,20.0,194.37,194.27,41.48816379]
[1736355940342,0.96478884,194.36,194.26,41.48816379]
[1736355940542,20.0,194.37,194.27,41.48816379]
[1736355940751,20.0,194.37,194.28,41.48816379]
[1736355940954,0.9648505,194.39,194.28,41.48816379]
[1736355941158,20.0,194.37,194.25,41.48816379]
[1736355941338,20.0,194.37,194.27,41.48816379]
[1736355941745,0.96484285,194.39,194.29,41.48816379]
[1736355942066,5.36705642,194.4,194.28,41.48816379]
[1736355942446,5.36705642,194.4,194.26,41.48816379]
[1736355942643,5.36705642,194.4,194.27,41.48816379]
[1736355942847,5.3671882,194.4,194.29,41.48816379]
[1736355943047,5.36706934,194.4,194.29,23.776884]
[1736355943362,20.0,194.37,194.25,41.48816379]
[1736355943556,20.0,194.37,194.26,41.48816379]
[1736355943868,3.36200258,194.43,194.32,23.776884]
[1736355944170,20.0,194.43,194.32,41.48816379]
[1736355944347,0.96444049,194.43,194.27,41.48816379]
[1736355944540,4.40243679,194.42,194.27,41.48816379]
[1736355944748,0.9646301,194.41,194.27,41.48816379]
[1736355945051,0.9646301,194.41,194.25,53.80776379]
[1736355945255,20.0,194.37,194.22,41.48816379]
[1736355945456,0.96500133,194.36,194.21,41.48816379]
[1736355945673,0.96500133,194.36,194.19,53.51086379]
[1736355945849,20.0,194.3,194.16,41.48816379]
[1736355946050,0.96529006,194.29,194.15,41.48816379]
[1736355946271,20.0,194.3,194.19,41.48816379]
[1736355946569,6.0757,194.33,194.21,41.48816379]
[1736355946746,20.0,194.32,194.21,41.48816379]
[1736355947071,20.0,194.32,194.22,41.48816379]
[1736355947365,0.02524791,194.29,194.24,41.48816379]
[1736355947567,0.02524791,194.29,194.25,65.26504779]
[1736355947748,0.02524791,194.29,194.28,41.48816379]
[1736355947949,0.02524791,194.29,194.22,23.776884]
[1736355947950,0.02524791,194.29,194.27,41.48816379]
[1736355948465,0.02524791,194.29,194.21,41.48816379]
[1736355948668,0.02524791,194.29,194.19,41.48816379]
[1736355948871,0.02524791,194.29,194.17,41.48816379]
[1736355949476,0.02524791,194.29,194.18,41.48816379]
[1736355949854,0.02524791,194.29,194.19,23.776884]
[1736355950375,0.02524791,194.29,194.17,41.48816379]
[1736355950874,0.02524791,194.29,194.17,23.776884]
[1736355951052,0.02524791,194.29,194.19,23.776884]
[1736355951450,0.02524791,194.29,194.15,41.48816379]
[1736355951654,0.02524791,194.29,194.14,41.48816379]
[1736355951848,0.02524791,194.29,194.15,65.26504779]
[1736355952149,0.02524791,194.29,194.18,65.26504779]
[1736355952349,0.02524791,194.29,194.2,41.48816379]
[1736355952558,0.02524791,194.29,194.21,65.26504779]
[1736355952873,0.02524791,194.29,194.21,23.776884]
[1736355953371,0.02524791,194.29,194.23,23.776884]
[1736355953752,0.02524791,194.29,194.22,23.776884]
[1736355953948,0.02524791,194.29,194.15,41.48816379]
[1736355954158,0.99045673,194.29,194.13,9.6027]
[1736355954345,2.15965673,194.29,194.12,43.90816379]
[1736355954545,2.15965673,194.29,194.11,41.48816379]
[1736355954546,20.0,194.25,194.11,41.48816379]
[1736355954785,0.96550905,194.24,194.12,41.48816379]
[1736355954989,20.0,194.25,194.08,30.81]
[1736355954990,20.0,194.25,194.15,41.48816379]
[1736355955369,0.96550905,194.27,194.16,23.776884]
[1736355955572,6.0757,194.28,194.17,41.48816379]
[1736355955778,6.0757,194.27,194.18,65.26504779]
[1736355955980,6.0757,194.27,194.21,23.776884]
[1736355956251,0.02524791,194.29,194.2,23.776884]
[1736355956446,0.02524791,194.29,194.21,41.48816379]
[1736355956651,0.02524791,194.29,194.21,23.776884]
[1736355957073,0.02524791,194.29,194.2,41.48816379]
[1736355957281,0.02524791,194.29,194.18,41.48816379]
[1736355957483,0.02524791,194.29,194.19,23.776884]
[1736355957653,0.02524791,194.29,194.19,65.26504779]
[1736355957859,6.27724791,194.29,194.24,23.776884]
[1736355958066,0.02524791,194.29,194.28,65.26504779]
[1736355958255,0.02524791,194.29,194.28,23.776884]
[1736355959156,0.02524791,194.29,194.24,41.48816379]
[1736355959484,0.02524791,194.29,194.25,23.776884]
[1736355959664,0.02524791,194.29,194.27,23.776884]
[1736355959866,0.02524791,194.29,194.23,41.48816379]
[1736355960066,0.02524791,194.29,194.21,41.48816379]
[1736355960264,0.02524791,194.29,194.18,43.97216379]
[1736355960579,0.02524791,194.29,194.08,5.0]
[1736355960580,0.02524791,194.29,194.14,51.96886379]
[1736355960985,0.02524791,194.29,194.15,23.776884]
[1736355961186,0.02524791,194.29,194.14,10.4807]
[1736355961380,0.02524791,194.29,194.14,51.96886379]
[1736355961571,0.02524791,194.29,194.19,41.48816379]
[1736355961763,0.02524791,194.29,194.21,23.776884]
[1736355962189,0.02524791,194.29,194.15,41.48816379]
[1736355962375,1.09937301,194.29,194.17,41.48816379]
[1736355962780,1.09937301,194.29,194.19,65.26504779]
[1736355962981,1.09937301,194.29,194.21,23.776884]
[1736355963180,1.09937301,194.29,194.24,23.776884]
[1736355963377,1.09937301,194.29,194.18,41.48816379]
[1736355963577,1.09937301,194.29,194.19,41.48816379]
[1736355963886,1.09937301,194.29,194.2,65.26504779]
[1736355964075,1.09937301,194.29,194.22,23.776884]
[1736355964386,1.09937301,194.29,194.23,23.776884]
[1736355964591,1.09937301,194.29,194.19,41.48816379]
[1736355964768,1.09937301,194.29,194.18,41.48816379]
[1736355964963,1.09937301,194.29,194.19,41.48816379]
[1736355965169,1.09937301,194.29,194.17,41.48816379]
[1736355965473,1.09937301,194.29,194.2,23.776884]
[1736355965788,1.09937301,194.29,194.22,41.48816379]
[1736355965966,1.09937301,194.29,194.23,23.776884]
[1736355966163,1.09937301,194.29,194.17,41.48816379]
[1736355966366,1.09937301,194.29,194.15,30.81]
[1736355966367,1.09937301,194.29,194.18,65.26504779]
[1736355966590,1.09937301,194.29,194.22,23.776884]
[1736355966782,1.09937301,194.29,194.24,23.776884]
[1736355967003,1.09937301,194.29,194.23,23.776884]
[1736355967390,1.09937301,194.29,194.22,23.776884]
[1736355967593,1.09937301,194.29,194.22,65.26504779]
[1736355967908,1.09937301,194.29,194.25,23.776884]
[1736355968112,11.5812,194.28,194.2,41.48816379]
[1736355968268,1.09937301,194.29,194.25,23.776884]
[1736355968695,1.09937301,194.29,194.24,23.776884]
[1736355968878,1.09937301,194.29,194.22,41.48816379]
[1736355969084,1.09937301,194.29,194.23,65.26504779]
[1736355969398,1.09937301,194.29,194.23,23.776884]
[1736355969706,1.09937301,194.29,194.25,23.776884]
[1736355970283,1.09937301,194.29,194.23,23.776884]
[1736355971107,1.09937301,194.29,194.24,23.776884]
[1736355971315,1.09937301,194.29,194.19,25.49029765]
[1736355971316,11.5812,194.28,194.19,25.49029765]
[1736355971477,11.5812,194.28,194.17,25.49029765]
[1736355971684,11.5812,194.28,194.16,25.49029765]
[1736355971892,11.5812,194.28,194.19,49.26718165]
[1736355972079,1.09937301,194.29,194.22,49.26718165]
[1736355972387,1.09937301,194.29,194.24,23.776884]
[1736355972592,1.09937301,194.29,194.23,23.776884]
[1736355972899,1.09937301,194.29,194.18,25.49029765]
[1736355973198,1.09937301,194.29,194.22,23.776884]
[1736355973390,1.09937301,194.29,194.2,23.776884]
[1736355973781,1.09937301,194.29,194.21,23.776884]
[1736355973984,11.5812,194.28,194.21,23.776884]
[1736355974287,11.5812,194.28,194.18,25.49029765]
[1736355974676,11.5812,194.28,194.17,45.49029765]
[1736355974882,11.5812,194.28,194.17,20.0]
[1736355975082,12.54635351,194.28,194.14,10.4807]
[1736355975294,0.96525226,194.27,194.15,25.49029765]
[1736355975478,34.7436,194.28,194.16,23.776884]
[1736355975907,11.5812,194.28,194.18,49.26718165]
[1736355976087,1.09937301,194.29,194.21,23.776884]
[1736355976778,12.68037301,194.29,194.21,23.776884]
[1736355977013,12.68037301,194.29,194.18,25.49029765]
[1736355977510,7.21711757,194.28,194.14,10.4807]
[1736355977813,21.2133,194.25,194.08,25.49029765]
[1736355978015,0.96559257,194.24,194.08,25.49029765]
[1736355978218,0.96559257,194.24,194.07,2.5149]
[1736355978386,20.96559257,194.24,194.11,25.49029765]
[1736355978579,0.96556411,194.26,194.15,23.776884]
[1736355978912,0.02524791,194.27,194.19,49.26718165]
[1736355979213,0.02524791,194.27,194.19,23.776884]
[1736355979394,0.02524791,194.27,194.18,45.49029765]
[1736355979586,0.02524791,194.27,194.19,23.776884]
[1736355979909,0.02524791,194.27,194.18,20.0]
[1736355980201,0.02524791,194.27,194.16,49.26718165]
[1736355980416,0.02524791,194.27,194.15,25.49029765]
[1736355980790,0.02524791,194.27,194.16,25.49029765]
[1736355980988,0.02524791,194.27,194.19,23.776884]
[1736355981302,0.02524791,194.27,194.17,41.43159345]
[1736355981607,0.02524791,194.27,194.22,41.43159345]
[1736355981787,0.02524791,194.27,194.23,23.776884]
[1736355981983,0.02524791,194.27,194.19,43.93829345]
[1736355982201,0.02524791,194.27,194.15,41.43159345]
[1736355982506,0.02524791,194.27,194.16,41.43159345]
[1736355982810,0.02524791,194.27,194.17,41.43159345]
[1736355983012,0.02524791,194.27,194.19,41.43159345]
[1736355983210,0.02524791,194.27,194.2,23.776884]
[1736355983418,0.02524791,194.27,194.2,65.20847745]
[1736355983588,0.02524791,194.27,194.21,41.43159345]
[1736355983913,0.02524791,194.27,194.24,23.776884]
[1736355984291,0.02524791,194.27,194.21,41.43159345]
[1736355984613,0.02524791,194.27,194.22,23.776884]
[1736355984803,0.02524791,194.27,194.22,65.20847745]
[1736355984984,0.02524791,194.27,194.25,65.20847745]
[1736355985185,0.02524791,194.27,194.25,23.776884]
[1736355985493,0.02524791,194.27,194.23,23.776884]
[1736355985687,0.02524791,194.27,194.26,65.20847745]
[1736355986098,1.0741251,194.36,194.31,23.776884]
[1736355986295,1.0741251,194.36,194.26,41.43159345]
[1736355986496,1.0741251,194.36,194.25,2.5723]
[1736355986817,1.0741251,194.36,194.27,23.776884]
[1736355987035,1.0741251,194.36,194.26,41.43159345]
[1736355987198,1.0741251,194.36,194.29,65.20847745]
[1736355987509,1.0741251,194.36,194.29,23.776884]
[1736355987716,1.0741251,194.36,194.3,65.20847745]
[1736355988116,11.577,194.35,194.15,153.42893852]
[1736355988317,8.8212,194.34,194.19,41.43159345]
[1736355988491,9.78604854,194.34,194.18,10.3976]
[1736355989215,9.78604854,194.34,194.19,23.776884]
[1736355989412,34.7346,194.33,194.19,23.776884]
[1736355989614,34.7346,194.33,194.19,41.43159345]
[1736355989912,11.5782,194.33,194.2,41.43159345]
[1736355990124,11.5782,194.33,194.22,41.43159345]
[1736355990616,11.5782,194.33,194.22,65.20847745]
[1736355990792,11.5782,194.33,194.22,23.776884]
[1736355990994,11.5782,194.33,194.24,23.776884]
[1736355991318,11.5782,194.33,194.21,23.776884]
[1736355991818,11.5782,194.33,194.23,23.776884]
[1736355992029,11.5782,194.33,194.23,65.20847745]
[1736355992217,11.5782,194.33,194.23,23.776884]
[1736355992423,11.5782,194.33,194.22,41.43159345]
[1736355992597,11.5782,194.33,194.23,23.776884]
[1736355992921,11.5782,194.33,194.24,23.776884]
[1736355993221,11.5782,194.33,194.22,23.776884]
[1736355993422,11.5782,194.33,194.22,60.20847745]
[1736355993726,1.0741251,194.36,194.24,41.43159345]
[1736355993938,1.0741251,194.36,194.23,41.43159345]
[1736355994090,54.7311,194.35,194.19,41.43159345]
[1736355994290,0.9649894,194.34,194.18,51.82919345]
[1736355994490,54.7311,194.35,194.2,41.43159345]
[1736355994715,10.577,194.35,194.23,41.43159345]
[1736355995318,10.577,194.35,194.22,41.43159345]
[1736355995525,10.577,194.35,194.22,18.776884]
[1736355995700,11.54191976,194.35,194.22,18.776884]
[1736355995895,10.577,194.35,194.22,60.20847745]
[1736355996227,1.0741251,194.36,194.28,41.43159345]
[1736355996525,1.0741251,194.36,194.21,5.0]
[1736355996526,1.0741251,194.36,194.27,36.43159345]
[1736355996735,1.0741251,194.36,194.26,41.43159345]
[1736355997295,1.0741251,194.36,194.24,72.37159345]
[1736355997527,1.0741251,194.36,194.26,23.776884]
[1736355997695,1.0741251,194.36,194.24,30.94]
[1736355997696,1.0741251,194.36,194.29,41.43159345]
[1736355997902,1.0741251,194.36,194.26,41.43159345]
[1736355998345,1.0741251,194.36,194.3,41.43159345]
[1736355998543,11.577,194.35,194.2,138.5]
[1736355998745,1.0741251,194.36,194.24,41.43159345]
[1736355998909,1.0741251,194.36,194.25,41.43159345]
[1736355999113,1.0741251,194.36,194.27,23.776884]
[1736355999307,1.0741251,194.36,194.28,65.20847745]
[1736355999619,1.0741251,194.36,194.26,30.94]
[1736355999936,1.0741251,194.36,194.22,9.9034]
[1736355999937,11.577,194.35,194.22,9.9034]
[1736356000146,11.577,194.35,194.24,41.43159345]
[1736356000310,1.0741251,194.36,194.31,20.0]